Cogmind - Beta 12 @@@ ROGUE MODE // 2023.03.04 @ 14:16:19 Player: ChromeKnight Result: Destroyed by H-77 Assassin with High-powered Shotgun Performance ------------- Evolutions (6) 3000 Regions Visited (13) 2600 Robots Destroyed (161) 805 Value Destroyed (5714) 5714 Prototype IDs (9) 180 Alien Tech Used (0) 0 Bonus (1833) 1833 TOTAL SCORE: 14132 Bonus ------- High Alert Combat Kills 455 Follower Combat Kills 378 Met Warlord at Base 500 MAIN.C Attacked Warlord 500 Cogmind --------- Core Integrity 0/1150 Matter 161/300 Energy 97/100 System Corruption 5% Temperature Warning (337) Movement Hovering (58) Location -4/Factory Parts ------- > --- POWER (2) -------- (None) > --- PROPULSION (5) --- Improved Gyrokinetic Inverter Improved Gyrokinetic Inverter Improved Gyrokinetic Inverter Improved Gyrokinetic Inverter > --- UTILITY (10) ----- (None) > --- WEAPON (2) ------- (None) > --- INVENTORY (5) ---- Antimatter Reactor Antimatter Reactor Antimatter Reactor Peak State ------------ > --- POWER ------------ Light Antimatter Reactor Light Antimatter Reactor > --- PROPULSION ------- High-density Centrium Leg High-density Centrium Leg High-density Centrium Leg High-density Centrium Leg High-density Centrium Leg > --- UTILITY ---------- Advanced Cryofiber Web Spectral Analyzer Advanced Sensor Array Advanced Signal Interpreter Improved Target Analyzer Improved Transmission Jammer Improved Medium Armor Plating Layered Heavy Armor Plating Improved Remote Shield > --- WEAPON ----------- Long-range Phase Cannon RU-N14's Throwing Claymores v3 > --- INVENTORY -------- Advanced Medium Treads Heavy Disruptor Cannon [Rating: 143] Favorites ----------- Power Light Antimatter Reactor Engine Light Angular Momentum Engine Power Core Light Fission Core Reactor Light Antimatter Reactor Propulsion Carbon-fiber Leg Treads Advanced Medium Treads Leg Carbon-fiber Leg Hover Unit Gravmag System Utility Medium Storage Unit Device Structural Scanner Storage Medium Storage Unit Processor Advanced Melee Analysis Suite Hackware System Shield Protection Hardened Medium Armor Plating Weapon Plasma Sword Energy Gun Lightning Gun Energy Cannon Long-range Phase Cannon Ballistic Gun Heavy Battle Rifle Ballistic Cannon Mass Driver Launcher Neutron Missile Launcher Special Weapon RU-N14's Throwing Claymores v3 Impact Weapon Heavy Hammer Slashing Weapon Plasma Sword Build | -11 -10 -10 -9 -9 -8 -7 -6 -5 -5 -5 -5 -4 -4 ------- Run | Jun Mat Min Mat Min Mat Fac Fac Fac Upp Upp War Pro Fac Slots Evolved 12 | . . . 2 . 2 2 2 2 . . . . 2 Power 1 | . . . . . . . 1 . . . . . . Propulsion 3 | . . . 1 . 1 . 1 . . . . . . Utility 8 | . . . 1 . 1 2 . 2 . . . . 2 Weapon . | . . . . . . . . . . . . . . Parts Attached 179 | 6 10 4 10 3 28 13 11 13 10 . 6 10 55 Power 24 | 1 2 1 1 . 3 3 2 2 3 . . 2 4 Engine 11 | 1 2 . 1 . 3 2 . 1 . . . 1 . Core 7 | . . 1 . . . 1 2 1 2 . . . . Reactor 6 | . . . . . . . . . 1 . . 1 4 Propulsion 71 | 2 4 2 4 . 14 5 5 3 4 . 3 6 19 Treads 7 | . . . . . . 1 . . . . . . 6 Leg 49 | 2 4 2 4 . 9 1 5 3 4 . 3 6 6 Wheel . | . . . . . . . . . . . . . . Hover 15 | . . . . . 5 3 . . . . . . 7 Flight . | . . . . . . . . . . . . . . Utility 54 | 1 2 1 4 3 7 4 2 6 3 . 2 2 17 Device 16 | . . . . . 3 1 . 3 . . . 1 8 Storage 3 | 1 1 . 1 . . . . . . . . . . Processor 11 | . . . . . . 1 . 3 1 . 1 . 5 Hackware 2 | . . . . . 1 . . . . . . . 1 Protection 22 | . 1 1 3 3 3 2 2 . 2 . 1 1 3 Artifact . | . . . . . . . . . . . . . . Weapon 30 | 2 2 . 1 . 4 1 2 2 . . 1 . 15 Energy Gun 3 | 2 . . . . . . 1 . . . . . . Energy Cannon 6 | . . . . . . . . . . . . . 6 Ballistic Gun 1 | . . . . . . . . . . . . . 1 Ballistic Cannon 1 | . . . . . . . . . . . . . 1 Launcher 1 | . . . . . . . . . . . . . 1 Special Weapon 3 | . . . . . . . . . . . . . 3 Impact Weapon 5 | . 2 . 1 . 1 1 . . . . . . . Slashing Weapon 10 | . . . . . 3 . 1 2 . . 1 . 3 Piercing Weapon . | . . . . . . . . . . . . . . Special Melee Weapon . | . . . . . . . . . . . . . . Unidentified Prototypes 9 | . . . . . . 1 . 1 . . . . 7 Corrupted Parts 1 | . 1 . . . . . . . . . . . . System Corruption 2 | . 2 . . . . . . . . . . . . Parts Lost 71 | . . 3 1 2 7 7 . 4 6 . . 13 28 Power 14 | . . 1 1 1 . 1 . 2 2 . . 2 4 Propulsion 28 | . . 1 . 1 6 4 . . 2 . . 7 7 Utility 23 | . . 1 . . 1 1 . 1 2 . . 4 13 Weapon 6 | . . . . . . 1 . 1 . . . . 4 Highest Loss Streak 14 | . . 2 1 1 5 6 . 4 6 . . 10 14 To Critical Strikes . | . . . . . . . . . . . . . . Average Slot Usage (%) 88 | . 86 88 96 82 88 86 90 91 95 100 100 88 78 Engine 3 | . 14 4 7 . 8 4 . 1 1 . . . 2 Core 2 | . . . 2 . . 2 9 8 2 5 5 . . Reactor 2 | . . . . . . . . . 3 5 5 7 6 Treads 2 | . . . . . . 4 . . . . . . 15 Leg 22 | . 27 27 31 26 28 16 13 29 28 29 29 23 5 Hover 1 | . . . . . 4 . 13 . . . . . 1 Device 11 | . . . . . 12 15 13 16 17 17 17 14 17 Storage 7 | . 14 14 11 11 9 7 6 5 5 5 5 5 3 Processor 4 | . . . . . . 1 . 5 11 11 11 11 10 Hackware 1 | . . . . . 3 7 6 4 . . . . . Protection 11 | . 3 13 20 22 10 12 12 5 9 11 11 9 5 Energy Gun 1 | . 19 . . . . . 5 3 . . . . . Impact Weapon 6 | . 6 28 22 22 1 2 . . . . . . . Slashing Weapon 5 | . . . . . 11 8 5 5 11 11 11 11 3 Naked Turns 14 | . . . . . . . . . . . . . 14 Heaviest Build 85 | 14 26 26 37 35 31 33 53 61 72 72 72 69 85 Greatest Support 160 | 20 20 20 33 33 61 47 88 88 88 80 80 100 160 Greatest Overweight (x) 3 | . 2 2 1 1 1 3 1 . . . . 1 2 Average Overweight (x) . | . . 1 . . . . . . . . . . . Largest Inventory Capacity 10 | 8 10 10 10 10 10 10 10 10 10 10 10 10 10 Average Capacity 9 | 6 9 10 10 10 10 10 10 10 10 10 10 10 8 Most Carried 10 | 1 10 10 10 10 10 10 10 10 10 10 10 10 10 Average Carried 8 | . 4 9 9 9 6 8 9 9 9 10 9 9 7 Final Capacity 10 | 8 10 10 10 10 10 10 10 10 10 10 10 10 5 Final Carried 10 | 1 10 10 10 10 9 8 10 10 10 10 10 8 3 Class Distribution -------------------- 50% | Scavenger-Mutant 46% | Mutant Dominant Class ---------------- Mutant | -10/Materials Mutant | -10/Mines Mutant | -9/Materials Mutant | -9/Mines Scavenger-Mutant | -8/Materials Scavenger-Mutant | -7/Factory Scavenger-Mutant | -6/Factory Scavenger-Mutant | -5/Factory Scavenger-Mutant | -5/Upper Caves Scavenger-Mutant | -5/Upper Caves Scavenger-Mutant | -5/Warlord Scavenger-Mutant | -4/Proximity Caves Mutant | -4/Factory Resources | -11 -10 -10 -9 -9 -8 -7 -6 -5 -5 -5 -5 -4 -4 ----------- Run | Jun Mat Min Mat Min Mat Fac Fac Fac Upp Upp War Pro Fac Matter Collected 1901 | 210 148 40 125 30 265 102 115 161 129 17 60 60 439 Remotely . | . . . . . . . . . . . . . . Salvage Created 6445 | . 546 451 282 222 1337 338 50 507 428 153 . 835 1296 Parts 266 | . 21 11 13 8 71 17 3 27 14 6 . 27 48 Haulers Intercepted 7 | . 1 . 1 . 2 . . 1 . . . . 2 Recyclers Shooed 11 | . 4 . . 1 . 1 1 3 . . . . 1 Parts Field Recycled . | . . . . . . . . . . . . . . Retrieved Matter . | . . . . . . . . . . . . . . Parts Self-Destructed 39 | . . . . . . . . . 8 6 . 25 . Prevented . | . . . . . . . . . . . . . . Kills | -11 -10 -10 -9 -9 -8 -7 -6 -5 -5 -5 -5 -4 -4 ------- Run | Jun Mat Min Mat Min Mat Fac Fac Fac Upp Upp War Pro Fac Combat Hostiles Destroyed 112 | . 6 9 8 7 21 5 1 5 6 4 . 12 28 Melee 75 | . . 5 6 6 20 5 1 5 6 4 . 12 5 Guns 6 | . 6 . . . . . . . . . . . . Cannons 6 | . . . . . . . . . . . . . 6 AOE 17 | . . . . . . . . . . . . . 17 Classes Destroyed 18 | . 6 1 3 1 3 1 . . 1 . . . 2 Worker 12 | . 2 . . 2 3 . . 2 . . . . 3 Builder 6 | . . 1 . . . . . 1 . . . . 4 Tunneler 4 | . . . . 2 1 . . . . . . . 1 Hauler 7 | . 1 . 1 . 2 . . 1 . . . . 2 Recycler 10 | . 3 1 . 1 2 1 . . . . . . 2 Mechanic 2 | . . . 1 . . . . . . . . . 1 Operator 1 | . . . 1 . . . . . . . . . . Watcher 7 | . 1 . 1 . 1 . . 1 . . . . 3 Swarmer 35 | . 3 3 5 7 3 . . . 1 4 . 5 4 Grunt 35 | . 3 6 1 . 8 1 . 3 4 . . 5 4 Brawler 3 | . . . . . 1 2 . . . . . . . Protector 3 | . . . . . . . . . . . . . 3 Sentry 14 | . . . 2 . 7 . . 1 1 . . . 3 Specialist 3 | . . . . . 1 . . . . . . . 2 Hunter 10 | . . . . . 1 . . . . . . 2 7 Programmer 8 | . . . . . . 2 1 1 . . . . 4 Striker 1 | . . . . . . . . . . . . . 1 Decomposer 1 | . . . . . . . . . 1 . . . . Samaritan 1 | . . . . . . . . . 1 . . . . Best Kill Streak 22 | . 5 3 3 8 12 2 1 2 2 2 . 5 22 Combat Bots Only 12 | . 3 3 3 4 8 1 1 2 2 2 . 5 12 Max Kills in Single Turn 4 | . 1 1 1 1 1 1 1 1 1 1 . 1 4 Gunslinging . | . . . . . . . . . . . . . . Exploded 4 | . . . . . . . . . . . . . 4 Melee 1 | . . 1 1 1 1 1 1 1 1 1 . 1 1 Uniques/NPCs Destroyed . | . . . . . . . . . . . . . . Combat | -11 -10 -10 -9 -9 -8 -7 -6 -5 -5 -5 -5 -4 -4 -------- Run | Jun Mat Min Mat Min Mat Fac Fac Fac Upp Upp War Pro Fac Damage Taken 14362 | . 266 702 737 244 1285 785 121 910 1314 108 91 1645 6154 Core 2102 | . 76 129 45 42 135 121 20 9 153 . . 221 1151 Absorbed by Shields 1267 | . . . . . 65 . . 238 79 116 97 549 123 Regen/Repaired (Parts) 566 | . . . . . 184 . . 18 . . 364 . . Core Remaining (%) 73 | 100 . 18 . 78 75 82 97 . . . . 61 . Volleys Fired 100 | . 34 . . . . . 14 . . . . . 52 Largest 2 | . 2 . . . . . 1 . . . . . 1 Hottest 110 | . 90 . . . . . 55 . . . . . 110 Shots Fired 131 | . 65 . . . . . 14 . . . . . 52 Gun 87 | . 65 . . . . . 14 . . . . . 8 Cannon 23 | . . . . . . . . . . . . . 23 Launcher 1 | . . . . . . . . . . . . . 1 Special 20 | . . . . . . . . . . . . . 20 Kinetic 10 | . . . . . . . . . . . . . 10 Thermal 48 | . 34 . . . . . . . . . . . 14 Explosive 21 | . . . . . . . . . . . . . 21 Electromagnetic 52 | . 31 . . . . . 14 . . . . . 7 Robot Hit Streak 16 | . 8 . . . . . 3 . . . . . 16 Robot Miss Streak 4 | . 3 . . . . . 3 . . . . . 4 Penetration Max . | . . . . . . . . . . . . . . Secondary Targets 1 | . 1 . . . . . . . . . . . . Max Gunslinging Chain 1 | . 1 . . . . . . . . . . . . Shots Hit Robots 396 | . 44 24 33 18 59 26 8 42 34 5 1 49 53 Core Hits 206 | . 19 6 5 4 28 9 4 12 9 5 1 18 86 Critical Kills 3 | . . 1 1 . . . . . . . . . 1 Critical Parts Destroyed 14 | . . 3 4 5 2 . . . . . . . . Critical Strikes 50 | . 4 4 5 5 5 1 . 6 6 . . 6 8 Burn 4 | . 4 . . . . . . . . . . . . Destroy 1 | . . . . . . . . . . . . . 1 Corrupt 1 | . . . . . . . . . . . . . 1 Smash 17 | . . 4 5 5 3 . . . . . . . . Sever 27 | . . . . . 2 1 . 6 6 . . 6 6 Melee Attacks 409 | . 2 33 51 34 67 36 2 51 41 9 4 56 23 Impact 127 | . 2 33 51 34 7 . . . . . . . . Slashing 282 | . . . . . 60 36 2 51 41 9 4 56 23 Piercing . | . . . . . . . . . . . . . . Sneak Attacks 42 | . 2 2 4 6 14 2 . 9 2 . . . 1 Combat Hostiles 4 | . . . . . 4 . . . . . . . . Follow-up Attacks 32 | . 1 3 10 2 3 2 . 3 4 1 1 2 . Damage Inflicted 22265 | . 694 1124 1352 932 2376 828 197 1986 1587 279 55 2440 8415 Guns 824 | . 545 . . . . . 144 . . . . . 135 Cannons 438 | . . . . . . . . . . . . . 438 Explosions 6256 | . 23 . . . . . . . . . . . 6233 Melee 13867 | . 126 1124 1352 932 2376 828 41 1986 1587 279 55 2440 741 Ramming 31 | . . . . . . . 12 . . . . . 19 Kinetic 135 | . . . . . . . . . . . . . 135 Thermal 1049 | . 359 . . . . . . . . . . . 690 Explosive 5688 | . . . . . . . . . . . . . 5688 Electromagnetic 646 | . 209 . . . . . 144 . . . . . 293 Impact 3743 | . 126 1124 1352 932 209 . . . . . . . . Slashing 10973 | . . . . . 2167 828 41 1986 1587 279 55 2440 1590 Piercing . | . . . . . . . . . . . . . . Highest Corruption 23 | . 2 2 . . 2 23 1 6 6 6 6 . 5 Average Corruption 5 | . 2 2 . . 1 20 1 5 6 6 6 . 2 Corruption Purged . | . . . . . . . . . . . . . . Corruption Blocked . | . . . . . . . . . . . . . . Effects 96 | . 4 9 . . . 24 . 10 23 12 1 . 13 Message Errors 25 | . . 1 . . . 8 . 3 8 2 . . 3 Matter Fused 26 | . 1 5 . . . 4 . 4 5 3 . . 4 Heat Flow Errors 12 | . 1 . . . . 5 . 2 3 . 1 . . Energy Discharges 7 | . . . . . . 1 . 1 1 1 . . 3 Parts Rejected 4 | . 1 . . . . 1 . . . . . . 2 Data Loss (minor) 19 | . 1 3 . . . 5 . . 5 4 . . 1 Data Loss (major) 3 | . . . . . . . . . 1 2 . . . Overload Shots . | . . . . . . . . . . . . . . Overflow Damage 2274 | . 90 234 299 524 240 78 . 180 111 . . 236 282 Projectiles 19 | . . . . . . . . . . . . . 19 Explosions 217 | . . . . . . . . . . . . . 217 Melee 2038 | . 90 234 299 524 240 78 . 180 111 . . 236 46 Knockbacks 13 | . 1 9 1 2 . . . . . . . . . Impact 13 | . 1 9 1 2 . . . . . . . . . Kinetic . | . . . . . . . . . . . . . . Secondary . | . . . . . . . . . . . . . . Self-Inflicted Damage 136 | . 19 . . . . . . . . . . . 117 Shots 3 | . 1 . . . . . . . . . . . 2 Rammed 2 | . . . . . . . . . . . . . 2 Targets Rammed 3 | . . . . . . . 1 . . . . . 2 Kicked 1 | . . . . . . . 1 . . . . . . Crushed . | . . . . . . . . . . . . . . Highest Temperature 445 | . 322 14 . . 33 245 92 269 285 . 95 24 445 Average Temperature 133 | . 126 7 . . 14 94 36 142 109 . 49 8 214 Received Heat Transfer 2205 | . 96 363 171 9 474 18 9 218 510 . 4 134 199 Siege Activations . | . . . . . . . . . . . . . . Robots Corrupted . | . . . . . . . . . . . . . . Combat Hostiles . | . . . . . . . . . . . . . . Parts Fried 32 | . 1 12 8 11 . . . . . . . . . Impact Corruptions 45 | . 2 12 12 17 2 . . . . . . . . Robots Melted . | . . . . . . . . . . . . . . Combat Hostiles . | . . . . . . . . . . . . . . Parts Melted 2 | . 2 . . . . . . . . . . . . Heat Transferred 1978 | . 1345 . . . . . . . . . . . 633 Parts Sabotaged . | . . . . . . . . . . . . . . Parts Stolen . | . . . . . . . . . . . . . . Parts Stripped . | . . . . . . . . . . . . . . Power Chain Reactions 2 | . 1 . . . . . . . . . . . 1 Missiles Intercepted . | . . . . . . . . . . . . . . Alert | -11 -10 -10 -9 -9 -8 -7 -6 -5 -5 -5 -5 -4 -4 ------- Run | Jun Mat Min Mat Min Mat Fac Fac Fac Upp Upp War Pro Fac Peak Influence 1283 | . 179 223 314 153 422 190 167 120 . . . . 1283 Initial 170 | . . 22 41 78 . 170 24 14 . . . . . Average 171 | . 64 111 161 55 221 116 34 40 . . . . 478 Maximum Alert Level 4 | . . 1 1 . 2 . . . . . . . 4 Low Security (%) 79 | 100 100 94 82 100 41 100 100 100 . . . . 39 Level 1 12 | . . 5 17 . 52 . . . . . . . 22 Level 2 1 | . . . . . 5 . . . . . . . 3 Level 3 3 | . . . . . . . . . . . . . 16 Level 4 3 | . . . . . . . . . . . . . 17 Level 5 . | . . . . . . . . . . . . . . High Security . | . . . . . . . . . . . . . . Max Security . | . . . . . . . . . . . . . . Squads Dispatched 26 | . . . . . 2 2 1 3 . . . . 18 Investigation 4 | . . . . . 1 . . 1 . . . . 2 Extermination 8 | . . . . . . 2 1 1 . . . . 4 Reinforcement 5 | . . . . . 1 . . 1 . . . . 3 Assault 2 | . . . . . . . . . . . . . 2 Garrison 7 | . . . . . . . . . . . . . 7 Intercept . | . . . . . . . . . . . . . . Searches Triggered . | . . . . . . . . . . . . . . Construction Impeded 1 | . . . . . . . . . . . . . 1 Haulers Reinforced 1 | . . . . . . . . 1 . . . . . Active Scanning Responses . | . . . . . . . . . . . . . . Cargo Convoy Interrupts 1 | . . . . . . . . . . . . . 1 Stealth | -11 -10 -10 -9 -9 -8 -7 -6 -5 -5 -5 -5 -4 -4 --------- Run | Jun Mat Min Mat Min Mat Fac Fac Fac Upp Upp War Pro Fac Distress Signals 8 | . . . 4 . . . . . . . . . 4 Communications Jammed 76 | . . . . . . . . . . . . . 76 Distress Signals 68 | . . . . . . . . . . . . . 68 Times Spotted 229 | . 10 16 21 8 30 5 6 15 21 7 11 15 64 Peak Tracking Total 12 | . 3 3 4 4 9 3 3 5 7 5 12 5 12 Tactical Retreats 34 | . 1 1 . . 3 . . 2 14 2 . 2 9 Traps | -11 -10 -10 -9 -9 -8 -7 -6 -5 -5 -5 -5 -4 -4 ------- Run | Jun Mat Min Mat Min Mat Fac Fac Fac Upp Upp War Pro Fac Traps Triggered 4 | . . . . . 2 1 . . . . . . 1 Indirectly . | . . . . . . . . . . . . . . Trap Hack Attempts . | . . . . . . . . . . . . . . Triggered . | . . . . . . . . . . . . . . Disarmed . | . . . . . . . . . . . . . . Reprogrammed . | . . . . . . . . . . . . . . Reused . | . . . . . . . . . . . . . . Traps Extracted . | . . . . . . . . . . . . . . Installed . | . . . . . . . . . . . . . . Triggered 9 | . . . . . . . . . . . 9 . . Machines | -11 -10 -10 -9 -9 -8 -7 -6 -5 -5 -5 -5 -4 -4 ---------- Run | Jun Mat Min Mat Min Mat Fac Fac Fac Upp Upp War Pro Fac Machines Disabled 19 | . . 1 . . . . . . 1 . . . 17 Max in Single Turn 5 | . . . . . . . . . 1 . . . 5 Garrison Access 1 | . . . . . . . . . . . . . 1 Machines Repaired . | . . . . . . . . . . . . . . Machines Sabotaged . | . . . . . . . . . . . . . . Overloaded Fab Kills 4 | . . . . . . . . . . . . . 4 Hacking | -11 -10 -10 -9 -9 -8 -7 -6 -5 -5 -5 -5 -4 -4 --------- Run | Jun Mat Min Mat Min Mat Fac Fac Fac Upp Upp War Pro Fac Machines Accessed 14 | . 2 . 4 . 2 . 2 1 . . 1 . 2 Terminals 7 | . 2 . 4 . 1 . . . . . . . . Fabricators 3 | . . . . . . . 1 . . . . . 2 Repair Stations 2 | . . . . . 1 . . 1 . . . . . Recycling Units 1 | . . . . . . . 1 . . . . . . Scanalyzers . | . . . . . . . . . . . . . . Garrison Access . | . . . . . . . . . . . . . . Total Hacks 30 | . 5 . 7 . 8 . 4 3 . . 1 . 2 Successful 22 | . 3 . 5 . 7 . 2 2 . . 1 . 2 Failed 8 | . 2 . 2 . 1 . 2 1 . . . . . Catastrophic 2 | . . . 1 . 1 . . . . . . . . Database Lockouts . | . . . . . . . . . . . . . . Manual 12 | . 5 . 4 . . . 1 . . . . . 2 Terminals 14 | . 5 . 7 . 2 . . . . . . . . Fabricators 4 | . . . . . . . 2 . . . . . 2 Repair Stations 9 | . . . . . 6 . . 3 . . . . . Recycling Units 2 | . . . . . . . 2 . . . . . . Scanalyzers . | . . . . . . . . . . . . . . Garrison Access . | . . . . . . . . . . . . . . Terminal Hacks 4 | . . . 2 . 1 . . . . . 1 . . Robot Analysis 1 | . . . . . 1 . . . . . . . . Open Door 1 | . . . . . . . . . . . 1 . . Branch Access Points 1 | . . . 1 . . . . . . . . . . Zone Layout 1 | . . . 1 . . . . . . . . . . Fabricator Hacks 1 | . . . . . . . 1 . . . . . . Network Status 1 | . . . . . . . 1 . . . . . . Repair Station Hacks 8 | . . . . . 6 . . 2 . . . . . Scan Component 4 | . . . . . 3 . . 1 . . . . . Repair 4 | . . . . . 3 . . 1 . . . . . Recycling Unit Hacks . | . . . . . . . . . . . . . . Scanalyzer . | . . . . . . . . . . . . . . Garrison Access Hacks . | . . . . . . . . . . . . . . Unauthorized Hacks 9 | . 3 . 3 . . . 1 . . . . . 2 Terminals 6 | . 3 . 3 . . . . . . . . . . Track 2 | . 1 . 1 . . . . . . . . . . Botnet 4 | . 2 . 2 . . . . . . . . . . Fabricators 3 | . . . . . . . 1 . . . . . 2 Liberate 1 | . . . . . . . 1 . . . . . . Overload 2 | . . . . . . . . . . . . . 2 Repair Stations . | . . . . . . . . . . . . . . Recycling Units . | . . . . . . . . . . . . . . Scanalyzers . | . . . . . . . . . . . . . . Garrison Access . | . . . . . . . . . . . . . . Data Cores Recovered 1 | . . . 1 . . . . . . . . . . Used 1 | . . . 1 . . . . . . . . . . Hacking Detections 7 | . 1 . 3 . 1 . 1 1 . . . . . Full Trace Events 3 | . . . 1 . 1 . . 1 . . . . . Feedback Events . | . . . . . . . . . . . . . . Feedback Blocked . | . . . . . . . . . . . . . . Robot Schematics Acquired . | . . . . . . . . . . . . . . Robots Built . | . . . . . . . . . . . . . . Authchips . | . . . . . . . . . . . . . . Time . | . . . . . . . . . . . . . . Total Robot Build Rating . | . . . . . . . . . . . . . . Part Schematics Acquired . | . . . . . . . . . . . . . . Parts Built . | . . . . . . . . . . . . . . Authchips . | . . . . . . . . . . . . . . Time . | . . . . . . . . . . . . . . Total Part Build Rating . | . . . . . . . . . . . . . . Parts Repaired 4 | . . . . . 3 . . 1 . . . . . Time 127 | . . . . . 108 . . 19 . . . . . Parts Recycled . | . . . . . . . . . . . . . . Recycled Matter . | . . . . . . . . . . . . . . Retrieved Matter . | . . . . . . . . . . . . . . Retrieved Components . | . . . . . . . . . . . . . . Parts Scanalyzed . | . . . . . . . . . . . . . . Part Schematics Acquired . | . . . . . . . . . . . . . . Parts Damaged . | . . . . . . . . . . . . . . Bothacking | -11 -10 -10 -9 -9 -8 -7 -6 -5 -5 -5 -5 -4 -4 ------------ Run | Jun Mat Min Mat Min Mat Fac Fac Fac Upp Upp War Pro Fac Used RIF Installer . | . . . . . . . . . . . . . . Robots Hacked . | . . . . . . . . . . . . . . Non-combat . | . . . . . . . . . . . . . . Combat . | . . . . . . . . . . . . . . Robot Hacks Applied . | . . . . . . . . . . . . . . Relay Couplers Released 1 | . . . . . . . . . . . . . 1 Machine Destruction 1 | . . . . . . . . . . . . . 1 Fabnet Peak Effective % . | . . . . . . . . . . . . . . Robots Rewired . | . . . . . . . . . . . . . . Allies Hacked 1 | . . . . . . . 1 . . . . . . Hacks Repelled . | . . . . . . . . . . . . . . Allies | -11 -10 -10 -9 -9 -8 -7 -6 -5 -5 -5 -5 -4 -4 -------- Run | Jun Mat Min Mat Min Mat Fac Fac Fac Upp Upp War Pro Fac Total Allies 8 | . . 4 . 2 . . 2 . . . . . . Largest Group 3 | . . 3 1 2 2 . 2 . . . . . . Highest-Rated Group 82 | . . 40 31 45 45 . 82 . . . . . . Highest-Rated Ally 41 | . . 31 31 31 31 . 41 . . . . . . Total Orders . | . . . . . . . . . . . . . . Ally Attacks 82 | . . 31 9 . 13 . 29 . . . . . . Total Damage 1402 | . . 237 128 . 283 . 754 . . . . . . Kills 17 | . . 8 3 . . . 6 . . . . . . Allies Corrupted 1 | . . . . . . . 1 . . . . . . Allies Melted . | . . . . . . . . . . . . . . Intel | -11 -10 -10 -9 -9 -8 -7 -6 -5 -5 -5 -5 -4 -4 ------- Run | Jun Mat Min Mat Min Mat Fac Fac Fac Upp Upp War Pro Fac Robot Analysis Total 1 | . . . . . 1 . . . . . . . . Derelict Logs Recovered 4 | . . 1 . 2 . . . . . . . 1 . Drone Launches . | . . . . . . . . . . . . . . Drone Recoveries . | . . . . . . . . . . . . . . Exploration | -11 -10 -10 -9 -9 -8 -7 -6 -5 -5 -5 -5 -4 -4 ------------- Run | Jun Mat Min Mat Min Mat Fac Fac Fac Upp Upp War Pro Fac Turns Passed 12096 | 55 659 950 682 1183 1023 666 945 982 802 467 685 1296 1701 Spaces Moved 6911 | 42 375 413 339 706 509 202 665 369 515 296 541 860 1079 Core 57 | 12 . . . . 2 . . . . . . . 43 Treads 523 | . . . . . . 1 . . . . . . 522 Legs 5719 | 30 375 413 339 706 394 196 379 369 515 296 541 860 306 Wheels . | . . . . . . . . . . . . . . Hover 612 | . . . . . 113 5 286 . . . . . 208 Flight . | . . . . . . . . . . . . . . Fastest Speed 48 | 50 120 120 120 120 48 110 112 120 120 120 120 120 50 Average Speed 130 | 100 135 190 155 152 106 158 122 120 120 120 120 120 119 Slowest Speed 330 | 120 260 260 190 190 190 330 190 120 120 120 120 190 260 Overloaded Moves . | . . . . . . . . . . . . . . Propulsion Burnouts . | . . . . . . . . . . . . . . Robots Hopped . | . . . . . . . . . . . . . . Cave-ins Triggered 1 | . . . . . . . . . . . . . 1 Exploration Rate (%) 46 | 4 43 92 37 98 44 6 11 9 58 53 83 77 31 Regions Visited 13 Branch Regions 6 Pre-discovered Areas 1 | . . 1 . . . . . . . . . . . Known Exits Taken 1 | . . . 1 . . . . . . . . . . Unknown Exits Taken 12 | 1 1 1 . 1 1 1 1 1 1 1 1 1 . Scrap Searched 7 | . . . . 1 . . . . 2 . . 4 . Spaces Dug 11 | . . . . 2 . . 1 2 . . 1 . 5 Terrain Destroyed 295 | . 6 . . 2 . . 1 2 . . 1 . 283 Melee 9 | . . . . 2 . . 1 2 . . 1 . 3 Projectile 7 | . . . . . . . . . . . . . 7 AOE 279 | . 6 . . . . . . . . . . . 273 Terrain Rammed . | . . . . . . . . . . . . . . Walls Destroyed . | . . . . . . . . . . . . . . Machines Disabled . | . . . . . . . . . . . . . . Actions | -11 -10 -10 -9 -9 -8 -7 -6 -5 -5 -5 -5 -4 -4 --------- Run | Jun Mat Min Mat Min Mat Fac Fac Fac Upp Upp War Pro Fac Total 9282 | 52 458 527 423 762 879 494 781 836 639 397 577 1040 1417 Wait 1519 | 4 16 81 26 18 250 228 62 392 76 95 14 114 143 Move 6898 | 41 374 412 338 705 508 201 664 368 514 295 540 859 1079 Hop . | . . . . . . . . . . . . . . Pick Up 98 | 1 14 1 3 2 14 9 11 8 1 . 6 2 26 Fast Attach 88 | 6 6 2 2 . 12 7 9 4 4 . . 3 33 Attach 50 | . . 1 1 . 11 6 1 5 3 . 1 4 17 Detach 2 | . . . . . . . . . . . . . 2 Swap 42 | . 4 1 7 3 5 . 1 4 3 . 5 3 6 Drop 115 | . 9 1 7 4 15 9 16 7 1 . 9 3 34 Fire 100 | . 34 . . . . . 14 . . . . . 52 Melee 367 | . 1 28 39 30 64 34 2 48 37 7 2 52 23 Ram 2 | . . . . . . . . . . . . . 2 Kick 1 | . . . . . . . 1 . . . . . . Crush . | . . . . . . . . . . . . . . Escape Stasis . | . . . . . . . . . . . . . . Rewire . | . . . . . . . . . . . . . . Trap . | . . . . . . . . . . . . . . Miscellaneous . | . . . . . . . . . . . . . . Route ------- -11/Junkyard -10/Materials (discovered 2 exits: *Mat / [*Min]) -10/Mines (discovered 2 exits: *Mat x2) -9/Materials (discovered 3 exits: *Mat / *Min x2) -9/Mines (discovered 2 exits: *Mat x2) -8/Materials -7/Factory -6/Factory (discovered 2 exits: *Fac / [*Ext]) -5/Factory -5/Upper Caves -5/Upper Caves (discovered 2 exits: *Fac / *War) -5/Warlord -4/Proximity Caves -4/Factory History --------- Turn | Location | Event 9 | -11/Junkyard | Discovered new exit (range 15) 56 | -11/Junkyard | Entered Materials 154 | -10/Materials | Discovered new exit (range 15) 303 | -10/Materials | Build established: Mutant 305 | -10/Materials | Discovered new exit (range 15) 715 | -10/Materials | Entered Mines 998 | -10/Mines | Core integrity fell below 50% 1088 | -10/Mines | Assisted by bots powering up and referring to "LRC-V3" 1398 | -10/Mines | Discovered new exit (range 14) 1612 | -10/Mines | Core integrity fell below 20% 1633 | -10/Mines | Discovered new exit (range 7) 1657 | -10/Mines | Escorted by a lone wolf Derelict 1665 | -10/Mines | Entered Materials 1665 | -9/Materials | Accompanied by 1 ally 1665 | -9/Materials | Evolved 2 slots: Propulsion x1, Utility x1 1941 | -9/Materials | Discovered new exit (range 3) 2244 | -9/Materials | Identified exit to Mines 2347 | -9/Materials | Entered Mines 2359 | -9/Mines | Discovered new exit (range 14) 2406 | -9/Mines | Joined a pair of Derelicts in attacking an 0b10 outpost 2594 | -9/Mines | Learned Materials stockpile data 2761 | -9/Mines | Discovered new exit (range 12) 2955 | -9/Mines | Learned 2 Materials zone layouts 2957 | -9/Mines | Met a Derelict testing a Signal Generator 2967 | -9/Mines | Found Signal Generator 3530 | -9/Mines | Entered Materials 3530 | -8/Materials | Accompanied by 2 allies 3530 | -8/Materials | Evolved 2 slots: Propulsion x1, Utility x1 3535 | -8/Materials | Led the pair of lost Derelicts to an unsafe place 3761 | -8/Materials | Destroyed 8 combat bots 3762 | -8/Materials | Lost 5 parts (4n1u) 3885 | -8/Materials | Repaired Lgt. Deuterium Engine 3918 | -8/Materials | Repaired Hrd. Light Armor Plating 3958 | -8/Materials | Repaired Axe 4049 | -8/Materials | Build established: Scavenger-Mutant 4499 | -8/Materials | Discovered new exit (range 13) 4553 | -8/Materials | Entered Factory 4553 | -7/Factory | Evolved 2 slots: Utility x2 4684 | -7/Factory | System corruption reached 10% 4744 | -7/Factory | Lost 6 parts (1p3n1u1w) 4860 | -7/Factory | Discovered new exit (range 3) 5219 | -7/Factory | Entered another Factory area 5219 | -6/Factory | Evolved 2 slots: Power x1, Propulsion x1 5359 | -6/Factory | Discovered new exit (range 11) 5520 | -6/Factory | Discovered new exit (range 11) 6164 | -6/Factory | Entered another Factory area 6164 | -5/Factory | Evolved 2 slots: Utility x2 6250 | -5/Factory | Repaired Reaction Control System 6258 | -5/Factory | Spotted B-75 Beast 6797 | -5/Factory | Lost 4 parts (2p1u1w) 6855 | -5/Factory | Discovered new exit (range 8) 7146 | -5/Factory | Entered Upper Caves 7250 | -5/Upper Caves | Attracted the attention of an 0b10 base 7383 | -5/Upper Caves | Lost 6 parts (2p2n2u) 7842 | -5/Upper Caves | Encountered a Warlord checkpoint 7901 | -5/Upper Caves | Discovered new exit (range 12) 7948 | -5/Upper Caves | Entered another Upper Caves area 8132 | -5/Upper Caves | Discovered new exit (range 6) 8406 | -5/Upper Caves | Discovered new exit (range 7) 8415 | -5/Upper Caves | Entered Warlord 8456 | -5/Warlord | System corruption cleaned by Quarantine Array 8549 | -5/Warlord | Met Warlord 8574 | -5/Warlord | Warlord's base attacked by MAIN.C 8833 | -5/Warlord | Found Prototype Special Weapon 8836 | -5/Warlord | Found Prototype Special Weapon 8838 | -5/Warlord | Found Prototype Special Weapon 8924 | -5/Warlord | Warlord forces counterattacked 9008 | -5/Warlord | Opened side exit 9075 | -5/Warlord | Spotted Striker 9086 | -5/Warlord | Discovered new exit (range 12) 9100 | -5/Warlord | Entered Proximity Caves 9508 | -4/Proximity Caves | Learned Research stockpile data 9963 | -4/Proximity Caves | Spotted B-86 Titan 9972 | -4/Proximity Caves | Lost 3 parts (2n1u) 10086 | -4/Proximity Caves | Lost 10 parts (2p5n3u) 10343 | -4/Proximity Caves | Build established: Mutant 10377 | -4/Proximity Caves | Discovered new exit (range 7) 10396 | -4/Proximity Caves | Entered Factory 10396 | -4/Factory | Evolved 2 slots: Utility x2 10405 | -4/Factory | Identified RU-N14's Throwing Claymores v3 (x3) 10464 | -4/Factory | Garrison activated, responded to threat 10506 | -4/Factory | Lost 3 parts (1n1u1w) 11153 | -4/Factory | Garrison activated, responded to threat 11491 | -4/Factory | Cargo convoy interrupted 11492 | -4/Factory | Spotted Striker 11507 | -4/Factory | Found Prototype Processor 11509 | -4/Factory | Garrison activated, responded to threat 11511 | -4/Factory | Destroyed Striker 11542 | -4/Factory | Destroyed 12 combat bots 11560 | -4/Factory | Identified Spectral Analyzer 11656 | -4/Factory | Crushed by falling debris 11896 | -4/Factory | First assault squad dispatched 11919 | -4/Factory | Core integrity fell below 50% 11952 | -4/Factory | Lost 14 parts (2p4n7u1w) 12025 | -4/Factory | Core integrity fell below 20% 12097 | -4/Factory | Destroyed by H-77 Assassin with High-powered Shotgun Last Messages --------------- 12089_ Penetrated by Slug. 12089_ Slug penetrates Wall. 12090_ Penetrated by Slug. 12090_ Slug penetrates G-67 Veteran. 12090_ Slug penetrates Wall. 12092_ Imp. Antigrav System destroyed. 12092_ Slammed into G-67 Veteran. 12094_ Identified Neutron Missile Launcher. 12095_ Mass Driver destroyed. 12095_ Critical hit (Burn: +50). 12095_ G-67 Veteran destroyed. 12095_ Destroyed Adv. Heat Sink. 12095_ DSF Access disabled. 12095_ Destroyed Hpw. Tractor Beam. 12095_ Destroyed Com. Wheel. 12096_ The unstable cave ceiling collapses. 12096_ Antimatter Reactor destroyed. 12097_ Slug penetrates Reinforced Barrier. 12097_ Penetrated by Slug. 12097_ Neutron Missile Launcher destroyed. Map ----- +----------------------------------------------------+ | ?????????????????????????????????????????????????? | | ?????????????????????????????????????????????????? | | ?????????????????????????????????????????????????? | | ?????????????????????????????????????????????????? | | ?????????????????????????????????????????????????? | | ?????????????????????????????????????????????????? | | ?????????????????????????????????????????????????? | | ?????????????????????????????????????????????????? | | ?????????????????????????????????????????????????? | | ?????????????????????????????????????????????????? | | ???????????????????????? H ??????????????????????? | | ???????????????????????? ??????????????????????? | | ???????????????????????? #?????????????????????? | | ???????????????????????# #?????????????????????? | | ??????#######??????????# #???##????????????????? | | ??????# #??????????# #?? ????????????????? | | ??????#* #?#######??# #?? ""????????????????? | | ??????# #?? ?# #? """???????????????? | | ??????# #??"" !!!?# #? """???????????????? | | ??????###+###??"" !!! + + """???????????????? | | ????????# #????"Y !! # # """???????????????? | | ????????# #????"" """"??????????????? | | ????????# #??# "" ! """" #????????????? | | ??#"????# #??# g ???????????????? | | ??#"T ??# #??#| / # ##?????????????????? | | ??#"" # ##########R g@ #?????????????????? | | ??#"" + h b hh *% ##?????????????????? | | ??# #+#######h### # [ #?????????????????? | | ??# ""??# [ "" " #?#### ##?????????????????? | | ??# ????# " #???? ###??????????????????? | | ????????# !% #????# ###????????????????????? | | ????????# %= #????#####?????????????????????? | | ######??###""""""*#######????????????????????????? | | #????# " =%!"""" #????????###############?? | | #????##### = %"F " #????????# ! #?? | | """ ?????????# ! #????????# ! #?? | | """ ?????????# [ #????????# ! #?? | | """ #????????#####/############## #?? | | #????????????# ## = #?? | | ######????????????# ## #?? | | ################### ## #?? | | # #?? | | + #?? | | # #?? | | ############################## # #?? | | ?????????????????????????????# #########"######? | | ?????????????????????????????# "" # # | | ?????????????????????????????# "Y"! + "" # | | ?????????????????????????????# # Y" # | | ?????????????????????????????###### # "" # | +----------------------------------------------------+ Best States ------------- Heat Dissipation 43 Energy Generation 39 Energy Capacity 555 Matter Stores 300 Matter Capacity 300 Sight Range 24 Robot Scan Range 16 Terrain Scan Density 10 Jamming Range 16 Cloak Strength 2 Additional Mass Support 9 Base Temperature (-) 200 Armor Coverage 825 Resistance: EM 15 Melee Speed Boost 20 Evasion (%) 62 Targeting Accuracy 6 Melee Accuracy 16 Launcher Accuracy 30 Target Analysis 6 Recoil Reduction 5 Defensive Hacking 10 Item Schematics ----------------- None Robot Schematics ------------------ None Fabricated ------------ Nothing Alien Tech Used ----------------- None Achievements -------------- None Challenges ------------ None Game ------ Seed GyrokineticSpreadEdition Manual? 0 Play Time 01:14:12 Cumulative 388.8 hours Start 2023.03.02 @ 21:41:27 End 2023.03.04 @ 14:16:19 Sessions 4 Manual Loads 0 Difficulty Rogue Special Mode None Game No. 696 Rogue 541 Adventurer 148 Explorer 7 Win Type - Total 15 Types 13/0/1/1/0/0/0/0/0 Lore% 77 Gallery% 87 Achievement% 72 Wizard Run 0 Options --------- ASCII 0 Keyboard 0 Movement Numpad Keybinds 0 Fullscreen 2 Font 18/SmallcapsGlow Map View 76x50 Tactical HUD 1 Map Filters NONE Filters NONE Steam 1 RUN: c18b3654-31a4-49e4-9274-92b7c2ed6112